[Event "*** SCC Grand Prix: Titled Tuesday Blitz"]
[Site "Chess.com"]
[Date "2020.07.14"]
[Round "8"]
[White "teacher4chess"]
[Black "RobPeresian"]
[Result "0-1"]
[WhiteElo "2022"]
[BlackElo "2240"]
[TimeControl "180+1"]
[EndTime "11:36:31 PDT"]
[Termination "RobPeresian won by checkmate"]

1. d4 {[%clk 0:03:00]} 1... d5 {[%clk 0:02:59]} 2. c4 {[%clk 0:02:59.2]} 2... e6
{[%clk 0:02:59.4]} 3. Nc3 {[%clk 0:02:59.2]} 3... Be7 {[%clk 0:02:59.7]} 4. Qc2
{[%clk 0:02:55.9]} 4... Nf6 {[%clk 0:02:53.8]} 5. cxd5 {[%clk 0:02:53.5]} 5...
exd5 {[%clk 0:02:53.1]} 6. Bg5 {[%clk 0:02:53.3]} 6... c6 {[%clk 0:02:50.6]} 7.
e3 {[%clk 0:02:53.3]} 7... Nbd7 {[%clk 0:02:50.1]} 8. Bd3 {[%clk 0:02:53.5]}
8... Nf8 {[%clk 0:02:50.4]} 9. Nge2 {[%clk 0:02:53.8]} 9... Ne6 {[%clk
0:02:50.2]} 10. Bh4 {[%clk 0:02:53.6]} 10... g6 {[%clk 0:02:49.8]} 11. h3 {[%clk
0:02:43.9]} 11... Ng7 {[%clk 0:02:48.1]} 12. g4 {[%clk 0:02:32.1]} 12... O-O
{[%clk 0:02:42.3]} 13. O-O-O {[%clk 0:02:29.5]} 13... Re8 {[%clk 0:02:34.5]} 14.
Rdg1 {[%clk 0:02:27.8]} 14... b5 {[%clk 0:01:40.7]} 15. Kb1 {[%clk 0:01:48.3]}
15... a5 {[%clk 0:01:33.5]} 16. f3 {[%clk 0:01:43.5]} 16... a4 {[%clk 0:01:32]}
17. Nd1 {[%clk 0:00:55.8]} 17... Bd7 {[%clk 0:01:05]} 18. Nf2 {[%clk 0:00:38.7]}
18... b4 {[%clk 0:01:03.2]} 19. e4 {[%clk 0:00:32.6]} 19... dxe4 {[%clk
0:01:02.1]} 20. fxe4 {[%clk 0:00:33]} 20... Qa5 {[%clk 0:00:57.1]} 21. e5 {[%clk
0:00:21.6]} 21... b3 {[%clk 0:00:51]} 22. Qc3 {[%clk 0:00:18.9]} 22... bxa2+
{[%clk 0:00:49.3]} 23. Kxa2 {[%clk 0:00:18.8]} 23... Be6+ {[%clk 0:00:41.7]} 24.
Ka1 {[%clk 0:00:15.1]} 24... Nd5 {[%clk 0:00:23.2]} 25. Qxa5 {[%clk 0:00:12.4]}
25... Rxa5 {[%clk 0:00:24.1]} 26. Bxe7 {[%clk 0:00:11.5]} 26... Rxe7 {[%clk
0:00:24.6]} 27. Ne4 {[%clk 0:00:11.8]} 27... a3 {[%clk 0:00:20]} 28. Nf6+ {[%clk
0:00:09]} 28... Kh8 {[%clk 0:00:06.2]} 29. Be4 {[%clk 0:00:08]} 29... Rb7 {[%clk
0:00:05.4]} 30. bxa3 {[%clk 0:00:05.3]} 30... Rxa3# {[%clk 0:00:04.9]} 0-1

[Event "*** SCC Grand Prix: Titled Tuesday Blitz"]
[Site "Chess.com"]
[Date "2020.07.14"]
[Round "8"]
[White "Msb2"]
[Black "temus_galaktionov"]
[Result "1-0"]
[WhiteElo "2879"]
[BlackElo "2676"]
[TimeControl "180+1"]
[EndTime "11:36:32 PDT"]
[Termination "Msb2 won by resignation"]

1. d4 {[%clk 0:03:00.9]} 1... c6 {[%clk 0:03:00.9]} 2. c4 {[%clk 0:03:00.4]}
2... g6 {[%clk 0:02:57.8]} 3. Nc3 {[%clk 0:03:00]} 3... d6 {[%clk 0:02:58.7]} 4.
e4 {[%clk 0:02:59.1]} 4... Bg7 {[%clk 0:02:58.9]} 5. Be2 {[%clk 0:02:59.4]} 5...
Nd7 {[%clk 0:02:58.2]} 6. Nf3 {[%clk 0:02:58.4]} 6... e5 {[%clk 0:02:51.1]} 7.
Be3 {[%clk 0:02:57.1]} 7... Ngf6 {[%clk 0:02:48.4]} 8. O-O {[%clk 0:02:55.4]}
8... O-O {[%clk 0:02:47.3]} 9. Qc2 {[%clk 0:02:55.5]} 9... h6 {[%clk 0:02:45.1]}
10. Rad1 {[%clk 0:02:53.7]} 10... Qe7 {[%clk 0:02:44.8]} 11. Rfe1 {[%clk
0:02:48.2]} 11... Ng4 {[%clk 0:02:39.7]} 12. Bc1 {[%clk 0:02:28.7]} 12... exd4
{[%clk 0:02:33.4]} 13. Nxd4 {[%clk 0:02:28.9]} 13... Qh4 {[%clk 0:02:31.8]} 14.
Bxg4 {[%clk 0:02:26.9]} 14... Qxg4 {[%clk 0:02:32.7]} 15. f3 {[%clk 0:02:27]}
15... Qh4 {[%clk 0:02:32.4]} 16. Be3 {[%clk 0:02:26.2]} 16... Ne5 {[%clk
0:02:26.6]} 17. b3 {[%clk 0:02:25.6]} 17... Qe7 {[%clk 0:02:23.4]} 18. Qd2
{[%clk 0:02:23.9]} 18... g5 {[%clk 0:02:23.4]} 19. Bf2 {[%clk 0:02:19.3]} 19...
Rd8 {[%clk 0:02:15.3]} 20. Nce2 {[%clk 0:02:16]} 20... Ng6 {[%clk 0:01:47]} 21.
Ng3 {[%clk 0:02:10.7]} 21... Be5 {[%clk 0:01:29]} 22. Ngf5 {[%clk 0:02:08.1]}
22... Qf8 {[%clk 0:01:28.1]} 23. Bg3 {[%clk 0:02:01.5]} 23... a6 {[%clk
0:01:12.6]} 24. a4 {[%clk 0:01:47.2]} 24... c5 {[%clk 0:01:11.3]} 25. Ne2 {[%clk
0:01:35.7]} 25... Bxf5 {[%clk 0:01:05.6]} 26. exf5 {[%clk 0:01:35]} 26... Ne7
{[%clk 0:01:05.9]} 27. Qc2 {[%clk 0:01:28.4]} 27... Nc6 {[%clk 0:01:00.7]} 28.
f4 {[%clk 0:01:22.4]} 28... Bf6 {[%clk 0:00:56.8]} 29. fxg5 {[%clk 0:01:20]}
29... hxg5 {[%clk 0:00:57.7]} 30. Nc3 {[%clk 0:01:16.4]} 30... Bd4+ {[%clk
0:00:46.7]} 31. Bf2 {[%clk 0:01:14.7]} 31... Re8 {[%clk 0:00:32.9]} 32. Nd5
{[%clk 0:01:13.2]} 32... Qg7 {[%clk 0:00:32.1]} 33. Qd2 {[%clk 0:01:10]} 33...
Rad8 {[%clk 0:00:25.4]} 34. Bxd4 {[%clk 0:00:58.3]} 34... Nxd4 {[%clk
0:00:24.7]} 35. f6 {[%clk 0:00:54.8]} 35... Rxe1+ {[%clk 0:00:20.1]} 36. Rxe1
{[%clk 0:00:53.5]} 36... Qh6 {[%clk 0:00:21]} 37. Re3 {[%clk 0:00:49.9]} 37...
g4 {[%clk 0:00:20.5]} 38. Qf2 {[%clk 0:00:35.6]} 38... Qg5 {[%clk 0:00:14.8]}
39. h4 {[%clk 0:00:32]} 39... Qh6 {[%clk 0:00:09.6]} 40. Re4 {[%clk 0:00:32.1]}
40... Kf8 {[%clk 0:00:08]} 41. Rxg4 {[%clk 0:00:30.6]} 41... Re8 {[%clk
0:00:07.8]} 42. Ne7 {[%clk 0:00:31.1]} 42... Rxe7 {[%clk 0:00:07.8]} 43. fxe7+
{[%clk 0:00:32]} 43... Kxe7 {[%clk 0:00:08.7]} 44. Re4+ {[%clk 0:00:29.2]} 44...
Ne6 {[%clk 0:00:08.1]} 45. Qe3 {[%clk 0:00:24.9]} 45... Qxh4 {[%clk 0:00:07.2]}
46. Rxh4 {[%clk 0:00:23.6]} 1-0

[Event "*** SCC Grand Prix: Titled Tuesday Blitz"]
[Site "Chess.com"]
[Date "2020.07.14"]
[Round "8"]
[White "sea-needle"]
[Black "PotapovaM"]
[Result "0-1"]
[WhiteElo "2324"]
[BlackElo "2485"]
[TimeControl "180+1"]
[EndTime "11:36:32 PDT"]
[Termination "PotapovaM won by checkmate"]

1. c4 {[%clk 0:03:00.9]} 1... Nf6 {[%clk 0:02:57.6]} 2. Nc3 {[%clk 0:03:00.9]}
2... e6 {[%clk 0:02:57.9]} 3. e4 {[%clk 0:03:00.6]} 3... d5 {[%clk 0:02:58.5]}
4. e5 {[%clk 0:02:59.4]} 4... d4 {[%clk 0:02:58.5]} 5. exf6 {[%clk 0:02:59.2]}
5... dxc3 {[%clk 0:02:58.6]} 6. bxc3 {[%clk 0:02:59.2]} 6... Qxf6 {[%clk
0:02:58.1]} 7. d4 {[%clk 0:02:59]} 7... b6 {[%clk 0:02:57]} 8. Nf3 {[%clk
0:02:55.1]} 8... h6 {[%clk 0:02:55.6]} 9. Bd3 {[%clk 0:02:54.1]} 9... Bb7 {[%clk
0:02:55.1]} 10. O-O {[%clk 0:02:54]} 10... Bd6 {[%clk 0:02:53.9]} 11. Re1 {[%clk
0:02:48.9]} 11... O-O {[%clk 0:02:51.3]} 12. Be4 {[%clk 0:02:43.8]} 12... Bxe4
{[%clk 0:02:49.6]} 13. Rxe4 {[%clk 0:02:44.1]} 13... Nd7 {[%clk 0:02:50.1]} 14.
Qe2 {[%clk 0:02:41.2]} 14... Rfd8 {[%clk 0:02:21]} 15. Bd2 {[%clk 0:02:31.6]}
15... Qg6 {[%clk 0:02:18.8]} 16. Re1 {[%clk 0:02:16.5]} 16... Nf6 {[%clk
0:02:18.5]} 17. Ne5 {[%clk 0:02:15.5]} 17... Bxe5 {[%clk 0:02:07.3]} 18. Rxe5
{[%clk 0:02:16.4]} 18... Rac8 {[%clk 0:02:02.2]} 19. Re3 {[%clk 0:02:07.8]}
19... Kh8 {[%clk 0:01:51.7]} 20. Rg3 {[%clk 0:02:04.5]} 20... Qf5 {[%clk
0:01:42.1]} 21. Rf3 {[%clk 0:01:52]} 21... Qc2 {[%clk 0:01:32.6]} 22. Qe3 {[%clk
0:01:35]} 22... Qh7 {[%clk 0:01:10.3]} 23. Rh3 {[%clk 0:01:21.8]} 23... c5
{[%clk 0:01:05.9]} 24. Qf3 {[%clk 0:01:14.6]} 24... Qf5 {[%clk 0:00:47.3]} 25.
Qg3 {[%clk 0:00:47.5]} 25... Qg4 {[%clk 0:00:31.5]} 26. Qe5 {[%clk 0:00:32.3]}
26... Qf5 {[%clk 0:00:28.6]} 27. Bxh6 {[%clk 0:00:29.6]} 27... gxh6 {[%clk
0:00:16.6]} 28. Rxh6+ {[%clk 0:00:19]} 28... Kg7 {[%clk 0:00:16.9]} 29. Qxf5
{[%clk 0:00:19.1]} 29... exf5 {[%clk 0:00:15.6]} 30. Rh4 {[%clk 0:00:19.2]}
30... cxd4 {[%clk 0:00:14.6]} 31. Rxd4 {[%clk 0:00:17.5]} 31... Rxd4 {[%clk
0:00:14.2]} 32. cxd4 {[%clk 0:00:18.4]} 32... Rxc4 {[%clk 0:00:14.4]} 33. Rd1
{[%clk 0:00:18.6]} 33... Rc7 {[%clk 0:00:14.2]} 34. f3 {[%clk 0:00:17.5]} 34...
Rd7 {[%clk 0:00:14.2]} 35. Kf2 {[%clk 0:00:17.7]} 35... Nd5 {[%clk 0:00:14.3]}
36. Rd2 {[%clk 0:00:16.8]} 36... f4 {[%clk 0:00:14.3]} 37. g3 {[%clk 0:00:15.1]}
37... fxg3+ {[%clk 0:00:14.3]} 38. hxg3 {[%clk 0:00:16]} 38... b5 {[%clk
0:00:14.6]} 39. f4 {[%clk 0:00:16.9]} 39... b4 {[%clk 0:00:14.1]} 40. Kf3 {[%clk
0:00:17.1]} 40... a5 {[%clk 0:00:13.9]} 41. g4 {[%clk 0:00:16.9]} 41... a4
{[%clk 0:00:13.8]} 42. Ke4 {[%clk 0:00:16.3]} 42... b3 {[%clk 0:00:13.3]} 43.
axb3 {[%clk 0:00:14.6]} 43... axb3 {[%clk 0:00:11.4]} 44. Rb2 {[%clk 0:00:15.5]}
44... Nf6+ {[%clk 0:00:08.3]} 45. Kf5 {[%clk 0:00:15.1]} 45... Rd5# {[%clk
0:00:06.5]} 0-1

[Event "*** SCC Grand Prix: Titled Tuesday Blitz"]
[Site "Chess.com"]
[Date "2020.07.14"]
[Round "8"]
[White "anon569"]
[Black "dodorox"]
[Result "0-1"]
[WhiteElo "2277"]
[BlackElo "2141"]
[TimeControl "180+1"]
[EndTime "11:36:32 PDT"]
[Termination "dodorox won on time"]

1. e4 {[%clk 0:03:00.9]} 1... e6 {[%clk 0:02:57.3]} 2. Nf3 {[%clk 0:02:59.5]}
2... d5 {[%clk 0:02:57]} 3. Nc3 {[%clk 0:02:59.3]} 3... Nf6 {[%clk 0:02:54]} 4.
e5 {[%clk 0:02:58.5]} 4... Nfd7 {[%clk 0:02:54.1]} 5. d4 {[%clk 0:02:57.9]} 5...
c5 {[%clk 0:02:53.5]} 6. dxc5 {[%clk 0:02:57.7]} 6... Bxc5 {[%clk 0:02:49.4]} 7.
Bd3 {[%clk 0:02:54.7]} 7... Nc6 {[%clk 0:02:48.2]} 8. Bf4 {[%clk 0:02:53.3]}
8... Qb6 {[%clk 0:02:25]} 9. O-O {[%clk 0:02:51.6]} 9... a6 {[%clk 0:02:09.6]}
10. a3 {[%clk 0:02:44.2]} 10... Qa7 {[%clk 0:01:47.2]} 11. Ne2 {[%clk
0:02:25.9]} 11... b5 {[%clk 0:01:45.4]} 12. b4 {[%clk 0:02:21.8]} 12... Be7
{[%clk 0:01:42.2]} 13. c3 {[%clk 0:02:21.5]} 13... Bb7 {[%clk 0:01:40.4]} 14.
Ned4 {[%clk 0:02:19.9]} 14... Qb6 {[%clk 0:01:36]} 15. a4 {[%clk 0:02:16.7]}
15... bxa4 {[%clk 0:01:28.4]} 16. Rxa4 {[%clk 0:02:04]} 16... O-O {[%clk
0:01:28.1]} 17. Qa1 {[%clk 0:02:03.1]} 17... Nxd4 {[%clk 0:01:00.2]} 18. Nxd4
{[%clk 0:02:00.8]} 18... Nb8 {[%clk 0:00:58.7]} 19. Be3 {[%clk 0:01:57.2]} 19...
Qc7 {[%clk 0:00:56.7]} 20. f4 {[%clk 0:01:56.2]} 20... Nc6 {[%clk 0:00:51.2]}
21. Bxa6 {[%clk 0:01:52.6]} 21... Nxd4 {[%clk 0:00:42.8]} 22. Bxd4 {[%clk
0:01:50.1]} 22... Bxa6 {[%clk 0:00:40]} 23. Rxa6 {[%clk 0:01:49.3]} 23... Rxa6
{[%clk 0:00:37.8]} 24. Qxa6 {[%clk 0:01:49.4]} 24... Rb8 {[%clk 0:00:36.9]} 25.
Ra1 {[%clk 0:01:47.1]} 25... g6 {[%clk 0:00:32.8]} 26. Ra5 {[%clk 0:01:34.6]}
26... Kg7 {[%clk 0:00:32.6]} 27. Bc5 {[%clk 0:01:24.3]} 27... Bd8 {[%clk
0:00:22]} 28. Ra3 {[%clk 0:01:15.5]} 28... Rb7 {[%clk 0:00:20.7]} 29. Qa8 {[%clk
0:00:38.9]} 29... f6 {[%clk 0:00:16]} 30. Ra6 {[%clk 0:00:26.8]} 30... fxe5
{[%clk 0:00:13.6]} 31. Rxe6 {[%clk 0:00:26.3]} 31... exf4 {[%clk 0:00:11.6]} 32.
Re8 {[%clk 0:00:04]} 32... Qb8 {[%clk 0:00:09.3]} 0-1

[Event "*** SCC Grand Prix: Titled Tuesday Blitz"]
[Site "Chess.com"]
[Date "2020.07.14"]
[Round "8"]
[White "chargemax23"]
[Black "alexsergeyev"]
[Result "1-0"]
[WhiteElo "2651"]
[BlackElo "2344"]
[TimeControl "180+1"]
[EndTime "11:36:33 PDT"]
[Termination "chargemax23 won on time"]

1. e4 {[%clk 0:03:00.9]} 1... e5 {[%clk 0:02:59.1]} 2. Nf3 {[%clk 0:03:00.1]}
2... Nf6 {[%clk 0:02:59.2]} 3. Nc3 {[%clk 0:02:59.3]} 3... Bb4 {[%clk
0:02:57.7]} 4. Bc4 {[%clk 0:02:56.5]} 4... O-O {[%clk 0:02:56.4]} 5. O-O {[%clk
0:02:50.3]} 5... d6 {[%clk 0:02:54.6]} 6. d3 {[%clk 0:02:48.3]} 6... Nc6 {[%clk
0:02:45.2]} 7. h3 {[%clk 0:02:47.5]} 7... Be6 {[%clk 0:02:43.6]} 8. Bb3 {[%clk
0:02:46.6]} 8... Bxc3 {[%clk 0:02:29.7]} 9. bxc3 {[%clk 0:02:45.9]} 9... Ne7
{[%clk 0:02:27.1]} 10. Re1 {[%clk 0:02:37.6]} 10... Ng6 {[%clk 0:02:25.7]} 11.
d4 {[%clk 0:02:38]} 11... Qe7 {[%clk 0:02:12.5]} 12. a4 {[%clk 0:02:32.9]} 12...
c5 {[%clk 0:01:59.6]} 13. dxe5 {[%clk 0:02:13.5]} 13... dxe5 {[%clk 0:01:53.2]}
14. Bd5 {[%clk 0:02:12.5]} 14... Bxd5 {[%clk 0:01:25.3]} 15. exd5 {[%clk
0:02:11.7]} 15... Rad8 {[%clk 0:01:23.6]} 16. c4 {[%clk 0:02:10.9]} 16... Ne8
{[%clk 0:01:16.3]} 17. a5 {[%clk 0:01:55.8]} 17... Nd6 {[%clk 0:01:13.9]} 18.
Qe2 {[%clk 0:01:46.7]} 18... Rfe8 {[%clk 0:01:10]} 19. Be3 {[%clk 0:01:38.8]}
19... Qc7 {[%clk 0:01:04.2]} 20. Nd2 {[%clk 0:01:29]} 20... f5 {[%clk
0:00:59.4]} 21. f3 {[%clk 0:01:23.4]} 21... b6 {[%clk 0:00:27.6]} 22. Reb1
{[%clk 0:01:18]} 22... Rb8 {[%clk 0:00:26.1]} 23. axb6 {[%clk 0:01:04.4]} 23...
axb6 {[%clk 0:00:23.1]} 24. Ra3 {[%clk 0:01:02.2]} 24... Ra8 {[%clk 0:00:21.9]}
25. Rab3 {[%clk 0:01:00.7]} 25... Ra6 {[%clk 0:00:21.9]} 26. Qd3 {[%clk
0:00:41.6]} 26... e4 {[%clk 0:00:20.1]} 27. fxe4 {[%clk 0:00:41]} 27... fxe4
{[%clk 0:00:19.9]} 28. Qc3 {[%clk 0:00:39.5]} 28... Ne5 {[%clk 0:00:17.5]} 29.
Bf4 {[%clk 0:00:34.8]} 29... Ng6 {[%clk 0:00:11.9]} 30. Bg3 {[%clk 0:00:27.8]}
30... e3 {[%clk 0:00:11]} 31. Nf3 {[%clk 0:00:26.8]} 31... Qe7 {[%clk
0:00:06.8]} 32. Rxb6 {[%clk 0:00:19.7]} 32... Rxb6 {[%clk 0:00:05.9]} 33. Rxb6
{[%clk 0:00:20]} 33... Ne4 {[%clk 0:00:06.3]} 34. Qe1 {[%clk 0:00:20]} 34...
Nxg3 {[%clk 0:00:03]} 35. Qxg3 {[%clk 0:00:19.9]} 35... Qe4 {[%clk 0:00:02.8]}
36. Rb8 {[%clk 0:00:12.5]} 1-0

[Event "*** SCC Grand Prix: Titled Tuesday Blitz"]
[Site "Chess.com"]
[Date "2020.07.14"]
[Round "8"]
[White "Legendinunknown"]
[Black "platy3"]
[Result "1-0"]
[WhiteElo "2612"]
[BlackElo "2755"]
[TimeControl "180+1"]
[EndTime "11:36:35 PDT"]
[Termination "Legendinunknown won on time"]

1. d4 {[%clk 0:02:58.4]} 1... Nf6 {[%clk 0:02:59.2]} 2. c4 {[%clk 0:02:57]} 2...
e6 {[%clk 0:02:59.6]} 3. Nc3 {[%clk 0:02:55.2]} 3... Bb4 {[%clk 0:02:58.9]} 4.
f3 {[%clk 0:02:55.1]} 4... d5 {[%clk 0:02:53.5]} 5. a3 {[%clk 0:02:53.5]} 5...
Bxc3+ {[%clk 0:02:52.2]} 6. bxc3 {[%clk 0:02:54.4]} 6... O-O {[%clk 0:02:51.2]}
7. e3 {[%clk 0:02:53.1]} 7... b6 {[%clk 0:02:50]} 8. cxd5 {[%clk 0:02:49.8]}
8... exd5 {[%clk 0:02:49.9]} 9. Bd3 {[%clk 0:02:49.3]} 9... Ba6 {[%clk 0:02:48]}
10. Ne2 {[%clk 0:02:49.3]} 10... c5 {[%clk 0:02:46.6]} 11. O-O {[%clk
0:02:48.4]} 11... Re8 {[%clk 0:02:43.2]} 12. Ng3 {[%clk 0:02:45.2]} 12... h5
{[%clk 0:02:28.2]} 13. Qe2 {[%clk 0:02:19.2]} 13... Qc8 {[%clk 0:02:14.6]} 14.
Bb2 {[%clk 0:01:52.8]} 14... h4 {[%clk 0:02:03.2]} 15. Nh1 {[%clk 0:01:51.9]}
15... Bxd3 {[%clk 0:01:59.1]} 16. Qxd3 {[%clk 0:01:50.8]} 16... Qa6 {[%clk
0:02:00]} 17. Qxa6 {[%clk 0:01:41.7]} 17... Nxa6 {[%clk 0:01:53.2]} 18. Rfe1
{[%clk 0:01:42.1]} 18... Re6 {[%clk 0:01:42.5]} 19. Kf2 {[%clk 0:01:37.3]} 19...
Rae8 {[%clk 0:01:32.7]} 20. g3 {[%clk 0:01:36.6]} 20... hxg3+ {[%clk 0:01:29.9]}
21. Nxg3 {[%clk 0:01:37.5]} 21... Nc7 {[%clk 0:01:24.2]} 22. h4 {[%clk
0:01:28.5]} 22... Nb5 {[%clk 0:01:21.9]} 23. Re2 {[%clk 0:01:20.3]} 23... Nd6
{[%clk 0:01:11.7]} 24. Rg1 {[%clk 0:01:17.5]} 24... g6 {[%clk 0:01:02.9]} 25.
Bc1 {[%clk 0:01:12.4]} 25... Kf8 {[%clk 0:01:02.1]} 26. Rh1 {[%clk 0:01:11.6]}
26... Ke7 {[%clk 0:00:30.4]} 27. h5 {[%clk 0:01:00.8]} 27... Kd7 {[%clk
0:00:30.5]} 28. hxg6 {[%clk 0:00:58.9]} 28... fxg6 {[%clk 0:00:31.4]} 29. Rh6
{[%clk 0:00:57.3]} 29... Rg8 {[%clk 0:00:31.6]} 30. Kg2 {[%clk 0:00:54.5]} 30...
Kc6 {[%clk 0:00:30.5]} 31. a4 {[%clk 0:00:49.2]} 31... Nf7 {[%clk 0:00:20.3]}
32. Rh1 {[%clk 0:00:47.6]} 32... Nd6 {[%clk 0:00:19.8]} 33. Rh6 {[%clk
0:00:46.7]} 33... g5 {[%clk 0:00:11.3]} 34. e4 {[%clk 0:00:34.1]} 34... dxe4
{[%clk 0:00:10.3]} 35. fxe4 {[%clk 0:00:33.3]} 35... Nf7 {[%clk 0:00:04.9]} 36.
d5+ {[%clk 0:00:24.9]} 36... Kc7 {[%clk 0:00:05.3]} 37. Rh1 {[%clk 0:00:22.1]}
37... Re7 {[%clk 0:00:02.6]} 38. Rf1 {[%clk 0:00:21.7]} 38... Ng4 {[%clk
0:00:01.6]} 39. Rf5 {[%clk 0:00:20.2]} 39... Nfe5 {[%clk 0:00:01.4]} 40. Rxg5
{[%clk 0:00:19.3]} 40... Rd7 {[%clk 0:00:02.1]} 41. Rxg8 {[%clk 0:00:19]} 1-0

[Event "*** SCC Grand Prix: Titled Tuesday Blitz"]
[Site "Chess.com"]
[Date "2020.07.14"]
[Round "8"]
[White "bocah_sakit"]
[Black "Sjakkerntobi"]
[Result "0-1"]
[WhiteElo "2692"]
[BlackElo "2408"]
[TimeControl "180+1"]
[EndTime "11:36:35 PDT"]
[Termination "Sjakkerntobi won on time"]

1. e4 {[%clk 0:03:00.9]} 1... e6 {[%clk 0:02:59.8]} 2. d4 {[%clk 0:03:00.3]}
2... d5 {[%clk 0:03:00.1]} 3. Nc3 {[%clk 0:03:00.8]} 3... Bb4 {[%clk 0:03:00]}
4. e5 {[%clk 0:03:00.9]} 4... Ne7 {[%clk 0:02:59.6]} 5. Bd2 {[%clk 0:03:01]}
5... b6 {[%clk 0:02:59.4]} 6. f4 {[%clk 0:02:53.9]} 6... Ba6 {[%clk 0:02:58]} 7.
Nf3 {[%clk 0:02:54.2]} 7... Bxf1 {[%clk 0:02:47.4]} 8. Rxf1 {[%clk 0:02:55.1]}
8... a6 {[%clk 0:02:46.2]} 9. a3 {[%clk 0:02:53.4]} 9... Bxc3 {[%clk 0:02:46.2]}
10. Bxc3 {[%clk 0:02:54.3]} 10... c5 {[%clk 0:02:45.9]} 11. Qd2 {[%clk
0:02:52.4]} 11... Nbc6 {[%clk 0:02:43.3]} 12. O-O-O {[%clk 0:02:50.7]} 12... h5
{[%clk 0:02:40.7]} 13. g3 {[%clk 0:02:44.3]} 13... Nf5 {[%clk 0:02:37.8]} 14.
Qf2 {[%clk 0:02:28.9]} 14... Rc8 {[%clk 0:02:08]} 15. dxc5 {[%clk 0:02:22.6]}
15... bxc5 {[%clk 0:02:08.9]} 16. Qxc5 {[%clk 0:02:20.7]} 16... Ncd4 {[%clk
0:02:08.9]} 17. Bxd4 {[%clk 0:02:00.8]} 17... Rxc5 {[%clk 0:02:08.5]} 18. Bxc5
{[%clk 0:02:01.7]} 18... Qc7 {[%clk 0:02:04.2]} 19. b4 {[%clk 0:01:58.6]} 19...
a5 {[%clk 0:01:48.3]} 20. Nd4 {[%clk 0:01:33]} 20... Nxd4 {[%clk 0:01:21.4]} 21.
Rxd4 {[%clk 0:01:33.9]} 21... f6 {[%clk 0:01:16.8]} 22. Re1 {[%clk 0:01:27.4]}
22... Kf7 {[%clk 0:01:14.8]} 23. c4 {[%clk 0:01:21.1]} 23... axb4 {[%clk
0:01:10.3]} 24. axb4 {[%clk 0:01:20.1]} 24... Ra8 {[%clk 0:01:07.3]} 25. Kb2
{[%clk 0:01:17]} 25... dxc4 {[%clk 0:00:53.7]} 26. Rxc4 {[%clk 0:00:33.8]} 26...
Qb7 {[%clk 0:00:44.8]} 27. exf6 {[%clk 0:00:22.9]} 27... Qg2+ {[%clk 0:00:43.1]}
28. Kc3 {[%clk 0:00:12.7]} 28... Ra3+ {[%clk 0:00:42]} 29. Kd4 {[%clk
0:00:13.1]} 29... Qd2+ {[%clk 0:00:40.2]} 30. Ke5 {[%clk 0:00:13.5]} 30... Qxe1+
{[%clk 0:00:39.9]} 31. Kd6 {[%clk 0:00:13.8]} 31... gxf6 {[%clk 0:00:30.5]} 32.
b5 {[%clk 0:00:13.4]} 32... Qh1 {[%clk 0:00:27]} 33. Kc7 {[%clk 0:00:09]} 33...
Qd5 {[%clk 0:00:21.2]} 34. Rc1 {[%clk 0:00:08.3]} 34... Ra8 {[%clk 0:00:18.6]}
35. b6 {[%clk 0:00:07.2]} 35... Qd8+ {[%clk 0:00:18.7]} 36. Kc6 {[%clk
0:00:07.3]} 36... Qc8+ {[%clk 0:00:19.1]} 37. Kb5 {[%clk 0:00:07.5]} 37... Qa6+
{[%clk 0:00:18.6]} 38. Kb4 {[%clk 0:00:04.8]} 38... Qa5+ {[%clk 0:00:18.8]} 39.
Kc4 {[%clk 0:00:02.7]} 39... Qa4+ {[%clk 0:00:19.2]} 40. Kd3 {[%clk 0:00:01.7]}
40... Rd8+ {[%clk 0:00:19.4]} 41. Ke3 {[%clk 0:00:01]} 41... Qc6 {[%clk
0:00:17.5]} 0-1